bitfinex/quotes_SOLUSD_20260201
["timestamp","ask_amount","ask_price","bid_price","bid_amount"]
[1769984963518,28.82540932,101.84,101.78,3.58094471]
[1769984963709,13.53155548,101.83,101.78,3.58094471]
[1769984964019,3.71108829,101.83,101.79,3.58094471]
[1769984964605,3.71108829,101.84,101.8,3.58094471]
[1769984965424,13.52980432,101.85,101.81,3.58094471]
[1769984966208,13.52980432,101.85,101.81,13.40254001]
[1769984967403,3.71108829,101.85,101.81,13.40254001]
[1769984969920,3.71108829,101.84,101.77,12.86048891]
[1769984970221,3.71108829,101.84,101.79,9.82367672]
[1769984970824,3.71108829,101.84,101.75,3.58094471]
[1769984971017,3.71108829,101.79,101.72,22.6910272]
[1769984971209,3.71108829,101.79,101.72,37.98875393]
[1769984971415,3.71108829,101.79,101.72,13.411483]
[1769984971604,3.71108829,101.77,101.72,13.411483]
[1769984972127,3.71108829,101.77,101.7,3.58094471]
[1769984972597,3.71108829,101.77,101.7,13.41331116]
[1769984972801,3.71108829,101.77,101.71,3.58094471]
[1769984973002,3.71108829,101.76,101.71,3.58094471]
[1769984973323,3.71108829,101.76,101.7,9.2795442]
[1769984973520,3.71108829,101.74,101.7,9.83218949]
[1769984973719,49.12275984,101.79,101.71,3.58094471]
[1769984973720,3.71108829,101.79,101.71,3.58094471]
[1769984973915,3.71108829,101.78,101.73,3.58094471]
[1769984974723,3.71108829,101.82,101.77,3.58094471]
[1769984975926,3.71108829,101.81,101.77,13.40620965]
[1769984976826,4.27527085,101.85,101.79,3.58094471]
[1769984977026,3.81108829,101.89,101.84,12.86048891]
[1769984977213,3.81108829,101.89,101.82,12.86048891]
[1769984977413,3.81108829,101.89,101.84,3.58094471]
[1769984977625,3.81108829,101.89,101.84,12.86048891]
[1769984977825,3.81108829,101.89,101.85,3.60106729]
[1769984978021,3.81108829,101.89,101.85,13.41912763]
[1769984979429,3.61454744,101.88,101.82,3.60106729]
[1769984979620,3.71454744,101.89,101.84,3.60106729]
[1769984979929,3.71454744,101.89,101.85,9.81810043]
[1769984980731,3.71454744,101.89,101.84,13.42035288]
[1769984980732,13.52963063,101.89,101.84,13.42035288]
[1769984981229,13.52963063,101.89,101.82,9.82036816]
[1769984981230,3.61454744,101.88,101.82,9.82036816]
[1769984981534,3.61454744,101.88,101.83,9.82024491]
[1769984981736,3.61454744,101.88,101.82,13.42194912]
[1769984982614,3.61454744,101.86,101.81,9.82218245]
[1769984983136,3.61454744,101.86,101.79,3.60106729]
[1769984983328,3.61454744,101.86,101.79,13.42467957]
[1769984983534,3.61454744,101.86,101.79,9.82408938]
[1769984983831,3.61454744,101.84,101.79,9.82408938]
[1769984984140,3.61454744,101.84,101.78,13.42574539]
[1769984984444,3.61454744,101.82,101.78,9.8246781]
[1769984984637,3.61454744,101.84,101.79,3.60106729]
[1769984986836,13.63665479,101.83,101.79,13.42495647]
[1769984987140,3.81636608,101.82,101.78,9.82476388]
[1769984987323,3.81636608,101.82,101.77,3.63161492]
[1769984987720,3.81636608,101.82,101.78,9.82510337]
[1769984988446,24.54904474,101.84,101.79,9.82409145]
[1769984988447,13.63614618,101.84,101.79,9.82409145]
[1769984988629,3.81636608,101.83,101.79,9.82409145]
[1769984988829,13.63674865,101.83,101.79,9.82409145]
[1769984989025,13.63587627,101.84,101.79,9.82409145]
[1769984989230,13.63587627,101.84,101.79,13.45570637]
[1769984989938,3.81636608,101.83,101.79,13.45570637]
[1769984991042,13.63719399,101.83,101.78,13.45629724]
[1769984991244,3.81636608,101.82,101.77,13.45727236]
[1769984991539,13.63607612,101.84,101.79,13.45571295]
[1769984992426,3.81636608,101.83,101.78,3.63161492]
[1769984992629,3.81636608,101.85,101.79,3.63161492]
[1769984992837,13.63516983,101.85,101.79,38.01587983]
[1769984993342,3.81636608,101.85,101.8,3.63161492]
[1769984993535,13.63279878,101.87,101.81,3.63161492]
[1769984994224,1e-08,101.92,101.87,0.28432314]
[1769984994427,1e-08,101.92,101.91,9.28247817]
[1769984994832,1e-08,101.92,101.91,9.81257972]
[1769984995231,0.1,101.95,101.91,9.81257972]
[1769984995650,9.9088455,101.95,101.91,9.81257972]
[1769984996154,0.1,101.95,101.91,9.81257972]
[1769984996449,0.1,101.95,101.91,19.09505789]
[1769984996620,0.1,101.95,101.92,9.28247817]
[1769984996826,4.05116391,101.96,101.9,9.28247817]
[1769984997020,0.1,101.96,101.91,9.28247817]
[1769984997239,0.1,101.97,101.94,9.28247817]
[1769984997825,0.4143727,101.98,101.94,9.28247817]
[1769984998743,3.95116391,101.97,101.91,9.28247817]
[1769984999631,13.75893166,101.96,101.91,9.28247817]
[1769985000347,13.75893166,101.96,101.9,9.28247817]
[1769985000649,13.75893166,101.96,101.88,9.28247817]
[1769985000650,3.95116391,101.95,101.88,9.28247817]
[1769985000826,3.95116391,101.94,101.88,43.63662028]
[1769985001946,3.95116391,101.94,101.87,9.81600629]
[1769985002253,3.95116391,101.93,101.87,9.81600629]
[1769985002639,3.95116391,101.93,101.85,9.28247817]
[1769985002840,13.76278086,101.92,101.86,9.28247817]
[1769985003234,3.95116391,101.94,101.88,9.28247817]
[1769985003433,3.95116391,101.94,101.9,9.28247817]
[1769985003727,3.95116391,101.95,101.9,9.28247817]
[1769985003943,3.95116391,101.95,101.89,9.28247817]
[1769985004536,3.95116391,101.95,101.87,9.28247817]
[1769985004737,3.95116391,101.93,101.89,9.81450583]
[1769985005863,3.95116391,101.93,101.85,9.28247817]
[1769985006242,3.95116391,101.93,101.86,9.81695694]
[1769985006439,3.95116391,101.93,101.85,9.81807942]
[1769985006839,3.95116391,101.91,101.83,19.10276688]
[1769985007041,3.95116391,101.89,101.83,19.10276688]
[1769985007250,3.95116391,101.89,101.82,19.10340652]
[1769985007549,3.95116391,101.87,101.82,43.65653949]
[1769985007752,3.95116391,101.87,101.82,34.37406132]
[1769985007941,3.95116391,101.87,101.82,43.65653949]
[1769985008345,3.95116391,101.89,101.83,9.28247817]
[1769985008970,3.95116391,101.88,101.82,9.28247817]
[1769985009161,3.95116391,101.87,101.82,9.28247817]
[1769985009373,3.95116391,101.87,101.81,9.28247817]
[1769985010043,27.26,101.88,101.83,9.28247817]
[1769985010443,27.26,101.88,101.82,9.28247817]
[1769985010641,27.26,101.88,101.85,9.28247817]
[1769985010845,27.26,101.88,101.85,19.09999017]
[1769985011347,31.21116391,101.88,101.84,9.81888089]
[1769985011864,3.95116391,101.92,101.86,9.28247817]
[1769985012073,3.95116391,101.92,101.87,9.28247817]
[1769985012364,3.95116391,101.92,101.85,38.63868968]
[1769985012554,3.95116391,101.92,101.88,9.28247817]
[1769985012861,3.95116391,101.92,101.89,9.81450583]
[1769985013252,3.95116391,101.92,101.89,19.096984]
[1769985013447,27.26,101.93,101.89,19.096984]
[1769985013667,27.26,101.93,101.9,9.28247817]
[1769985014168,3.95116391,101.96,101.91,9.28247817]
[1769985014464,3.95116391,101.95,101.89,43.63324859]
[1769985014670,3.95116391,101.95,101.89,34.35077042]
[1769985014848,3.95116391,101.95,101.89,43.63324859]
[1769985015048,3.95116391,101.94,101.89,43.63324859]
[1769985015466,3.95116391,101.94,101.9,9.28247817]
[1769985016565,3.95116391,101.93,101.88,9.28247817]
[1769985016746,3.95116391,101.93,101.9,9.81342069]
[1769985018166,3.95116391,101.93,101.89,9.81450583]
[1769985018468,3.95116391,101.92,101.88,9.81514414]
[1769985018869,3.95116391,101.92,101.88,34.35381708]
[1769985019052,3.95116391,101.92,101.88,43.63629525]
[1769985019368,3.95116391,101.92,101.88,19.09762231]
[1769985019571,3.95116391,101.92,101.87,9.81593701]
[1769985019963,3.95116391,101.92,101.86,9.81710847]
[1769985020164,4.27527085,101.95,101.85,33.82696758]
[1769985020165,3.95116391,101.9,101.85,9.81800953]
[1769985020463,3.95116391,101.9,101.84,9.81884089]
[1769985020848,3.95116391,101.9,101.84,34.36715196]
[1769985021045,3.95116391,101.9,101.84,43.64963013]
[1769985021249,3.95116391,101.9,101.84,34.36715196]
[1769985021768,3.95116391,101.9,101.85,9.28247817]
[1769985022068,3.95116391,101.9,101.84,43.64963013]
[1769985022365,9.81412817,101.9,101.84,43.64963013]
[1769985022764,3.95116391,101.89,101.84,34.36715196]
[1769985022968,3.95116391,101.89,101.84,43.64963013]
[1769985023368,3.95116391,101.88,101.84,34.36715196]
[1769985024166,3.95116391,101.89,101.84,43.64963013]
[1769985024874,3.95116391,101.91,101.86,9.28247817]
[1769985025579,13.76389909,101.91,101.87,9.8164327]
[1769985026477,3.95116391,101.91,101.87,9.8164327]
[1769985026651,4.27527085,101.95,101.87,9.8164327]
[1769985026652,0.4143727,101.98,101.89,0.28432314]
[1769985026974,0.4143727,101.98,101.96,9.28247817]
[1769985027376,0.1,102.0,101.96,9.28247817]
[1769985027582,0.1,102.0,101.98,9.80584428]
[1769985028261,1e-08,102.0,101.98,9.80584428]
[1769985028663,1e-08,102.01,101.98,43.60293315]
[1769985028972,0.1,102.02,101.98,43.60293315]
[1769985029176,0.1,102.02,101.98,34.32045498]
[1769985029362,0.1,102.02,101.98,47.53317383]
[1769985030787,3.8361425,102.05,102.0,13.21271885]
[1769985031373,3.7361425,102.04,101.98,13.73608496]
[1769985031554,3.7361425,102.04,101.95,13.21271885]
[1769985031751,3.7361425,102.01,101.94,13.21271885]
[1769985032065,3.7361425,102.0,101.92,3.93024068]
[1769985032263,3.7361425,102.0,101.93,9.80993959]
[1769985032453,3.7361425,102.0,101.92,9.81148883]
[1769985032953,3.7361425,102.0,101.91,24.52967512]
[1769985033153,3.7361425,102.0,101.91,33.81215329]
[1769985033556,3.7361425,102.0,101.93,19.09301517]
[1769985033853,3.7361425,102.0,101.93,9.28247817]
[1769985034179,3.7361425,101.98,101.93,23.02322937]
[1769985034580,3.7361425,101.98,101.93,13.7407512]
[1769985035073,3.7361425,101.98,101.91,27.26]
[1769985035276,3.7361425,101.98,101.89,3.93024068]
[1769985035462,3.7361425,101.98,101.9,9.81299796]
[1769985036778,3.7361425,101.96,101.9,9.81299796]
[1769985037184,3.7361425,101.96,101.89,13.74455403]
[1769985037765,3.7361425,101.96,101.89,3.93024068]
[1769985038186,3.7361425,101.96,101.89,13.74424143]
[1769985038384,3.7361425,101.96,101.9,3.820038]
[1769985038569,13.54415293,101.96,101.91,13.63183889]
[1769985038772,3.7361425,101.96,101.91,13.63183889]
[1769985038986,13.54402327,101.96,101.91,13.63183889]
[1769985039364,3.7361425,101.96,101.92,3.820038]
[1769985039569,3.91134873,101.98,101.93,13.10251617]
[1769985040372,13.71597334,102.0,101.95,3.820038]
[1769985040571,3.91134873,102.0,101.95,3.820038]
[1769985040773,38.22530703,102.0,101.95,3.820038]
[1769985040974,3.91134873,101.99,101.94,9.80959697]
[1769985041672,3.91134873,101.99,101.95,9.80857216]
[1769985043504,9.80415438,102.0,101.95,3.820038]
[1769985043697,3.91134873,101.99,101.94,9.80969197]
[1769985043873,3.91134873,101.99,101.94,13.62972997]
[1769985045190,3.91134873,101.99,101.94,47.40513032]
[1769985045492,3.91134873,101.99,101.94,38.1539599]
[1769985046793,13.49826872,101.98,101.94,13.62972997]
[1769985047591,3.69242444,101.98,101.94,13.62972997]
[1769985048782,3.69242444,101.97,101.93,13.48174772]
[1769985050098,13.49947656,101.97,101.93,9.81047032]
[1769985050489,3.69242444,101.96,101.92,40.74240726]
[1769985052397,13.50035829,101.96,101.92,40.74240726]
[1769985052699,3.69242444,101.95,101.92,37.07140034]
[1769985053700,9.80793385,101.96,101.92,37.07140034]
[1769985053701,13.50035829,101.96,101.92,37.07140034]
[1769985055496,3.69242444,101.98,101.93,3.6712774]
[1769985055706,3.69242444,101.97,101.93,3.6712774]
[1769985057005,3.69242444,101.97,101.92,30.9312774]
[1769985057196,3.69242444,101.97,101.91,13.48335968]
[1769985057403,3.69242444,101.97,101.91,40.72335968]
[1769985057899,3.69242444,101.95,101.91,27.24]
[1769985058580,3.69242444,101.95,101.89,9.81400474]
[1769985058986,3.69242444,101.95,101.88,40.72630565]
[1769985059407,3.69242444,101.95,101.89,9.81420339]
[1769985059706,3.69242444,101.95,101.88,40.72636146]
[1769985059898,3.69242444,101.93,101.89,9.81420429]
[1769985060097,3.69242444,101.93,101.88,13.4863334]
[1769985061312,3.69242444,101.92,101.88,13.4863334]
[1769985061608,13.50240381,101.94,101.89,3.6712774]
[1769985061804,3.69242444,101.94,101.89,12.92244782]
[1769985062003,3.69242444,101.94,101.9,12.92244782]
[1769985062199,13.50217677,101.94,101.9,3.6712774]
[1769985062406,3.69242444,101.96,101.92,3.6712774]
[1769985062803,13.4987886,101.98,101.93,3.6712774]
[1769985063109,3.69242444,102.0,101.94,12.92244782]
[1769985063310,3.69242444,102.0,101.95,9.80872976]
[1769985063491,3.69242444,102.0,101.95,13.48000716]
[1769985064193,13.4970899,102.0,101.95,13.48000716]
[1769985064991,13.4970899,102.0,101.95,22.73117758]
[1769985065814,13.49479267,102.02,101.97,3.6712774]
[1769985065996,3.69242444,102.02,101.98,12.92244782]
[1769985066308,3.69242444,102.03,101.99,12.92244782]
[1769985066613,0.1,102.05,102.02,3.6712774]
[1769985066912,0.1,102.08,102.04,12.92244782]
[1769985067413,0.1,102.08,102.05,22.72156589]
[1769985067598,4.05009824,102.11,102.06,9.25117042]
[1769985068193,4.05009824,102.11,102.06,12.94246866]
[1769985068999,4.05009824,102.11,102.07,9.25117042]
[1769985069505,0.1,102.11,102.08,3.69129824]
[1769985069811,0.1,102.11,102.09,9.25117042]
[1769985070198,0.1,102.11,102.07,9.79671136]
[1769985070199,1e-08,102.11,102.1,12.94246866]
[1769985070809,1e-08,102.11,102.09,27.24]
[1769985071224,3.95009825,102.11,102.07,34.28970636]
[1769985071416,3.95009824,102.1,102.06,37.03787782]
[1769985071716,3.95009824,102.09,102.06,27.24]
[1769985072107,3.95009824,102.09,102.06,37.03751143]
[1769985072914,13.74347116,102.11,102.06,37.03751143]
[1769985073212,1e-08,102.11,102.06,49.97998009]
[1769985074794,1e-08,102.11,102.07,9.25117042]
[1769985075001,1e-08,102.11,102.06,70.78407671]
[1769985075205,1e-08,102.11,102.07,3.69129824]
[1769985075499,1e-08,102.11,102.07,12.94246866]
[1769985075716,1e-08,102.11,102.07,3.69129824]
[1769985075895,1e-08,102.11,102.07,12.94246866]
[1769985076095,1e-08,102.11,102.1,3.69129824]
[1769985076292,3.95009824,102.16,102.1,36.47117042]
[1769985076520,9.88797002,102.17,102.11,9.25117042]
[1769985076707,9.88797002,102.17,102.11,12.94246866]
[1769985076903,9.88797002,102.17,102.12,12.94246866]
[1769985077310,0.1,102.17,102.12,12.94246866]
[1769985077607,0.1,102.17,102.13,12.94246866]
[1769985077806,0.1,102.17,102.13,3.69129824]
[1769985078007,0.1,102.17,102.14,9.25117042]
[1769985078316,4.05009824,102.17,102.12,9.25117042]
[1769985078521,4.05009824,102.17,102.12,40.16246866]
[1769985078705,4.05009824,102.17,102.12,30.91129824]
[1769985079018,0.1,102.17,102.13,12.94246866]
[1769985079218,0.1,102.17,102.14,9.7902411]
[1769985079700,0.1,102.17,102.14,47.20891888]
[1769985080021,4.05009824,102.17,102.14,9.7902411]
[1769985080197,4.05009824,102.17,102.13,9.79144227]
[1769985080397,0.1,102.17,102.14,12.94246866]
[1769985080699,1e-08,102.17,102.13,47.21251662]
[1769985080904,1e-08,102.17,102.15,3.69129824]
[1769985082523,1e-08,102.17,102.15,13.48073701]
[1769985082716,1e-08,102.17,102.14,37.00994517]
[1769985082913,1e-08,102.17,102.15,9.78930767]
[1769985083302,3.95009825,102.17,102.14,37.01003236]
[1769985084211,1e-08,102.17,102.14,40.7013306]
[1769985084403,1e-08,102.17,102.15,9.78941183]
[1769985084903,1e-08,102.17,102.14,40.70156157]
[1769985086423,3.95009825,102.17,102.14,37.01026333]
[1769985086630,3.95009824,102.15,102.11,9.79281582]
[1769985086929,3.95009824,102.15,102.1,30.89129824]
[1769985087311,3.95009824,102.15,102.11,3.69129824]
[1769985087620,1e-08,102.17,102.13,12.94246866]
[1769985087822,1e-08,102.17,102.14,3.69129824]
[1769985088026,1e-08,102.17,102.14,40.14246866]
[1769985088226,1e-08,102.17,102.15,3.69129824]
[1769985088630,1e-08,102.17,102.16,9.78856695]
[1769985088923,1e-08,102.17,102.15,13.48036739]
[1769985091131,1e-08,102.17,102.15,37.95418041]
[1769985091530,3.95009824,102.21,102.16,3.69129824]
[1769985091730,3.95009824,102.23,102.19,3.69129824]
[1769985091917,3.95009824,102.23,102.19,12.94246866]
[1769985092117,3.95009824,102.25,102.21,3.69129824]
[1769985092429,3.95009824,102.27,102.21,30.89129824]
[1769985092624,3.95009824,102.27,102.2,9.25117042]
[1769985092625,3.95009824,102.27,102.24,9.78090766]
[1769985093420,0.1,102.28,102.24,9.78090766]
[1769985093622,0.1,102.28,102.23,12.94246866]
[1769985093623,3.95009824,102.27,102.23,9.78139744]
[1769985093825,3.95009824,102.27,102.23,22.7238661]
[1769985094133,3.95009824,102.27,102.23,37.92735673]
[1769985095830,3.95009824,102.27,102.23,47.17852715]
[1769985096039,0.1,102.28,102.24,12.94246866]
[1769985096822,0.1,102.28,102.23,22.7238661]
[1769985097130,1e-08,102.28,102.26,3.69129824]
[1769985097332,1e-08,102.28,102.22,3.69129824]
[1769985097634,1e-08,102.28,102.22,9.78221894]
[1769985097836,4.27527086,102.28,102.19,13.61272351]
[1769985098141,4.27527085,102.27,102.2,9.78472109]
[1769985098830,4.27527085,102.27,102.19,13.61308997]
[1769985099030,3.71160044,102.26,102.2,3.8273993]
[1769985099230,3.71160044,102.26,102.19,3.8273993]
[1769985099426,9.7799511,102.25,102.19,13.61248234]
[1769985099624,13.49155154,102.25,102.2,3.8273993]
[1769985099938,3.71160044,102.25,102.2,3.8273993]
[1769985100937,3.71160044,102.25,102.19,9.78508304]
[1769985101126,3.71160044,102.25,102.19,13.61248234]
[1769985101623,3.71160044,102.26,102.21,3.8273993]
[1769985101819,3.71160044,102.26,102.19,38.07671563]
[1769985102437,3.71160044,102.26,102.2,3.8273993]
[1769985103036,3.71160044,102.26,102.21,3.8273993]
[1769985103831,13.49098148,102.26,102.21,13.61045092]
[1769985104134,3.71160044,102.25,102.2,9.78432076]
[1769985105031,3.71160044,102.25,102.19,9.78551251]
[1769985105821,9.78090766,102.24,102.19,9.78551251]
[1769985106024,3.65473777,102.23,102.19,9.78551251]
[1769985106440,3.65473777,102.23,102.19,13.42352518]
[1769985106820,3.65473777,102.23,102.19,3.63801267]
[1769985107020,3.65473777,102.23,102.17,9.78720178]
[1769985107515,3.65473777,102.23,102.14,36.38708111]
[1769985107516,3.65473777,102.23,102.14,27.18]
[1769985107716,3.65473777,102.23,102.17,13.42542568]
[1769985107921,13.43707902,102.23,102.18,13.42458809]
[1769985108134,3.65473777,102.22,102.18,13.42458809]
[1769985108334,3.65473777,102.22,102.18,47.09829672]
[1769985108724,3.65473777,102.22,102.18,13.42458809]
[1769985109240,3.65473777,102.24,102.2,3.63801267]
[1769985109741,3.65473777,102.23,102.19,3.63801267]
[1769985109919,3.65473777,102.23,102.2,9.78473581]
[1769985110556,3.65473777,102.23,102.16,48.9422108]
[1769985110557,2.63064245,102.19,102.12,3.63801267]
[1769985110835,2.63064245,102.22,102.13,3.63801267]
[1769985111039,2.63064245,102.22,102.12,9.20708111]
[1769985111040,2.63064245,102.22,102.16,3.63801267]
[1769985111734,12.41385279,102.23,102.16,3.63801267]
[1769985111932,12.41385279,102.23,102.17,9.78760888]
[1769985112137,12.41385279,102.23,102.18,3.63801267]
[1769985112844,2.63198761,102.22,102.15,3.63801267]
[1769985113044,2.63198761,102.22,102.16,3.63801267]
[1769985113343,2.63198761,102.22,102.16,13.42648737]
[1769985113932,9.78377849,102.21,102.16,13.42648737]
[1769985114135,9.78377849,102.21,102.17,3.63801267]
[1769985114660,2.63330205,102.2,102.13,3.63801267]
[1769985114945,2.63330205,102.2,102.12,3.63801267]
[1769985115738,2.63394796,102.17,102.1,3.63801267]
[1769985115918,2.63394796,102.15,102.1,3.63801267]
[1769985118035,9.79048364,102.14,102.1,3.63801267]
[1769985119229,9.79048364,102.14,102.1,13.43219561]
[1769985120446,2.63782189,102.17,102.11,3.63801267]
[1769985120749,12.42581767,102.17,102.11,3.63801267]
[1769985121445,2.63857019,102.21,102.11,3.63801267]
[1769985121645,2.63857019,102.21,102.1,34.56430431]
[1769985121646,2.63857019,102.2,102.13,3.63801267]
[1769985122435,9.78569331,102.19,102.15,3.63801267]
[1769985124648,2.64076389,102.22,102.16,3.63801267]
[1769985125039,12.4246757,102.21,102.16,3.63801267]
[1769985125231,36.88412193,102.21,102.16,3.63801267]
[1769985125657,9.78391181,102.21,102.16,3.63801267]
[1769985126234,6.10683958,102.24,102.18,3.63801267]
[1769985126537,27.09248224,102.25,102.18,3.63801267]
[1769985126733,2.64147839,102.25,102.2,3.63801267]
[1769985127038,12.42178496,102.25,102.2,3.63801267]
[1769985127346,24.44675885,102.27,102.21,3.63801267]
[1769985127347,12.42232671,102.26,102.21,3.63801267]
[1769985127556,2.64357304,102.25,102.2,3.85495214]
[1769985128634,9.77944384,102.26,102.21,3.85495214]
[1769985128854,1e-08,102.28,102.22,3.85495214]
[1769985129042,2.64425528,102.28,102.22,3.85495214]
[1769985131275,9.77803852,102.27,102.23,13.63681656]
[1769985132660,9.77803852,102.27,102.24,3.85495214]
[1769985132850,2.64425528,102.28,102.24,3.85495214]
[1769985132851,1e-08,102.28,102.24,3.85495214]
[1769985133566,1e-08,102.28,102.24,13.63515444]
[1769985134259,1e-08,102.28,102.25,3.85495214]
[1769985134463,2.64818726,102.28,102.23,13.63633039]
[1769985135636,2.64881648,102.27,102.21,3.85495214]
[1769985136860,2.64881648,102.27,102.19,13.64019375]
[1769985137067,2.64881648,102.27,102.19,3.85495214]
[1769985137248,2.64943849,102.26,102.2,3.85495214]
[1769985137655,9.7799511,102.25,102.2,13.6394104]
[1769985137861,12.43000446,102.25,102.2,13.6394104]
[1769985138177,36.87988221,102.25,102.2,3.85495214]
[1769985138469,12.43061226,102.25,102.21,3.85495214]
[1769985138851,36.88049001,102.25,102.21,3.85495214]
[1769985139353,36.88049001,102.25,102.17,3.85495214]
[1769985139354,2.65126198,102.24,102.17,3.85495214]
[1769985139745,2.65126198,102.22,102.17,3.85495214]
[1769985140750,9.78186442,102.23,102.18,3.85495214]
[1769985141848,9.78186442,102.23,102.19,3.85495214]
[1769985143571,9.78126127,102.24,102.19,3.85495214]
[1769985144065,9.78126127,102.24,102.2,3.85495214]
[1769985144266,9.78038634,102.25,102.2,3.85495214]
[1769985144656,9.77943439,102.26,102.2,3.85495214]
[1769985145852,9.77814627,102.27,102.23,3.85495214]
[1769985146057,12.43206076,102.28,102.23,3.85495214]
[1769985146572,1e-08,102.28,102.23,3.85495214]
[1769985146774,1e-08,102.28,102.25,3.85495214]
[1769985146957,1e-08,102.28,102.26,3.85495214]
[1769985147651,1e-08,102.3,102.27,3.85495214]
[1769985147873,1e-08,102.3,102.28,9.77708251]
[1769985148076,1e-08,102.3,102.28,13.63203465]
[1769985148480,1e-08,102.3,102.29,3.85495214]
[1769985149172,1e-08,102.3,102.29,13.63107883]
[1769985149578,1e-08,102.3,102.29,3.85495214]
[1769985150160,1e-08,102.3,102.29,13.63107883]
[1769985150360,1e-08,102.3,102.29,3.85495214]
[1769985151281,1e-08,102.3,102.27,13.63260155]
[1769985151861,1e-08,102.3,102.27,3.85495214]
[1769985152171,1e-08,102.3,102.25,3.85495214]
[1769985152377,1e-08,102.3,102.26,3.85495214]
[1769985152552,2.75847265,102.3,102.26,3.85495214]
[1769985152759,2.75847264,102.29,102.24,27.18]
[1769985153175,36.97826144,102.28,102.24,27.18]
[1769985153366,2.75897607,102.27,102.23,3.85495214]
[1769985154378,36.97926251,102.28,102.23,3.85495214]
[1769985154783,2.75947371,102.27,102.22,3.85495214]
[1769985155075,12.53655622,102.28,102.24,3.85495214]
[1769985155280,36.97926251,102.28,102.22,3.85495214]
[1769985156065,2.75996563,102.27,102.22,3.85495214]
[1769985157285,12.5365786,102.29,102.23,3.85495214]
[1769985159689,12.5365786,102.29,102.24,3.60357966]
[1769985161088,36.97689534,102.29,102.24,3.60357966]
[1769985161789,2.76325449,102.28,102.24,3.60357966]
[1769985162389,9.77803852,102.27,102.24,3.60357966]
[1769985162685,9.77803852,102.27,102.22,3.60357966]
[1769985163078,34.22313483,102.27,102.22,3.60357966]
[1769985163272,36.98683782,102.27,102.22,3.60357966]
[1769985164093,2.76414634,102.26,102.22,3.60357966]
[1769985164671,2.7645846,102.25,102.21,9.78342538]
[1769985164867,2.7645846,102.25,102.2,27.18]
[1769985165282,2.7645846,102.25,102.19,3.60357966]
[1769985166171,2.7645846,102.25,102.16,27.18]
[1769985166388,2.76544606,102.22,102.13,13.74412647]
[1769985166687,2.76586939,102.19,102.13,3.95320298]
[1769985167271,2.76586939,102.18,102.11,3.95320298]
[1769985167689,2.76628786,102.15,102.09,4.15320298]
[1769985167892,2.76628786,102.15,102.09,13.94845673]
[1769985168480,2.76628786,102.15,102.09,4.15320298]
[1769985168995,37.03339428,102.14,102.09,4.15320298]
[1769985169304,9.7895252,102.15,102.1,3.95320298]
[1769985169478,2.76670152,102.16,102.1,3.95320298]
[1769985170182,37.02708836,102.16,102.1,3.95320298]
[1769985170382,2.76711042,102.15,102.1,3.95320298]
[1769985170781,2.76751463,102.17,102.1,3.95320298]
[1769985171510,7.04318505,102.15,102.08,3.95320298]
[1769985171672,2.7679142,102.15,102.1,3.95320298]
[1769985171872,9.78760888,102.17,102.11,3.95320298]
[1769985172384,9.78707633,102.18,102.11,3.95320298]
[1769985172593,9.78707633,102.18,102.12,3.95320298]
[1769985172776,9.78707633,102.18,102.14,3.95320298]
[1769985174384,34.25370385,102.18,102.13,3.95320298]
[1769985174600,37.02278943,102.18,102.13,3.95320298]
[1769985175176,9.78707633,102.18,102.14,3.95320298]
[1769985175677,9.78473581,102.2,102.14,3.95320298]
[1769985176391,12.55360934,102.21,102.14,3.95320298]
[1769985176574,9.78325731,102.22,102.17,3.95320298]
[1769985176775,9.78227789,102.23,102.17,3.95320298]
[1769985176995,12.55212214,102.23,102.18,13.73985398]
[1769985177183,9.78227789,102.23,102.19,3.95320298]
[1769985178778,37.00752453,102.23,102.17,3.95320298]
[1769985179299,2.77058559,102.22,102.15,3.95320298]
[1769985179483,2.77058559,102.22,102.16,3.95320298]
[1769985179983,2.77094988,102.19,102.14,31.15320298]
[1769985180381,2.77130999,102.21,102.15,3.95320298]
[1769985181001,7.04658084,102.2,102.15,3.95320298]
[1769985181495,2.77166597,102.18,102.13,3.95320298]
[1769985181683,2.77166597,102.18,102.12,3.95320298]
[1769985182200,2.77166597,102.18,102.13,3.95320298]
[1769985183304,2.77166597,102.18,102.11,3.95320298]
[1769985183806,34.25663109,102.17,102.11,3.95320298]
[1769985184101,2.7723657,102.16,102.11,3.95320298]
[1769985186183,34.26333822,102.15,102.11,3.95320298]
[1769985186499,34.26333822,102.15,102.07,4.15320298]
[1769985186500,2.77338544,102.13,102.07,4.15320298]
[1769985186705,2.77338544,102.11,102.05,3.95320298]
[1769985187005,128.78869571,102.15,102.05,3.95320298]
[1769985187006,7.04865629,102.1,102.05,3.95320298]
[1769985187902,7.04865629,102.1,102.06,3.62481322]
[1769985188205,7.04931675,102.12,102.06,3.62481322]
[1769985188408,34.27676035,102.11,102.06,3.62481322]
[1769985188795,37.0511308,102.11,102.06,3.62481322]
[1769985188992,2.77437045,102.1,102.04,3.82481322]
[1769985190391,9.79527867,102.09,102.04,3.82481322]